[Event "DFMMLV 2019"]
[Site "Braunfels"]
[Date "2019.06.20"]
[Round "1.52"]
[White "Hielscher, Ursula"]
[Black "Buchholz, Maja"]
[Result "1-0"]
[ECO "E81"]
[WhiteElo "1796"]
[BlackElo "1657"]
[Annotator "NA RC"]
[PlyCount "71"]
[EventDate "2019.06.20"]
[EventType "team-tourn"]
[EventCountry "GER"]
[SourceTitle "playchess.com"]
[Source "ChessBase"]
[SourceQuality "1"]
[WhiteTeam "Schleswig Holstein"]
[BlackTeam "Hessen 2"]
[TimeControl "40/5400+30:1800+30"]

1. d4 {[%emt 0:00:00]} Nf6 {[%emt 0:00:00]} 2. c4 {[%emt 0:01:07]} g6 {[%emt 0:00:00]} 3. Nc3 {[%emt 0:00:05]} Bg7 {[%emt 0:00:00]} 4. e4 {[%emt 0:00:09]} d6 {[%emt 0:00:00]} 5. f3 {[%emt 0:00:08]} O-O {[%emt 0:00:14]} 6. Be3 {[%emt 0:00:26]} a5 {[%emt 0:02:39]} 7. Qd2 {[%emt 0:01:24]} Re8 {[%emt 0:00:56]} 8. O-O-O {[%emt 0:02:22]} Na6 {[%emt 0:03:40]} 9. Bd3 {[%emt 0:03:52]} b6 {[%emt 0:08:32]} 10. e5 {[%emt 0:01:46]} Nd7 {[%emt 0:01:23]} 11. Be4 {[%emt 0:03:00]} Rb8 {[%emt 0:01:32]} 12. exd6 {[%emt 0:03:27]} cxd6 {[%emt 0:01:59]} 13. h4 {[%emt 0:02:41]} Nf6 {[%emt 0:01:35]} 14. Bc6 {[%emt 0:05:17]} Bd7 {[%emt 0:00:52]} 15. Bxd7 {[%emt 0:00:38]} Qxd7 {[%emt 0:00:43]} 16. g4 {[%emt 0:01:13]} h5 {[%emt 0:01:30]} 17. g5 {[%emt 0:04:31]} Nh7 {[%emt 0:00:22]} 18. Nge2 {[%emt 0:00:27]} Qc6 {[%emt 0:01:51]} 19. b3 {[%emt 0:01:33]} Qxf3 {[%emt 0:02:45]} 20. Rhf1 {[%emt 0:03:22]} Qc6 {[%emt 0:03:28]} 21. Qd3 {[%emt 0:04:53]} Nb4 {[%emt 0:01:46]} 22. Qb1 {[%emt 0:00:52]} Nf8 {[%emt 0:01:13]} 23. a3 {[%emt 0:01:36]} Na6 {[%emt 0:00:55]} 24. Rf2 {[%emt 0:05:24]} Nd7 {[%emt 0:03:02]} 25. Nf4 {[%emt 0:01:35]} Rf8 {[%emt 0:01:50]} 26. Ncd5 {[%emt 0:02:03]} Rbe8 {[%emt 0:01:36]} 27. Nxg6 {[%emt 0:01:24]} fxg6 {[%emt 0:02:44]} 28. Qxg6 {[%emt 0:00:10]} Qc8 {[%emt 0:04:41]} 29. Qe6+ {[%emt 0:04:37]} Kh7 {[%emt 0:02:20]} 30. Nxe7 {[%emt 0:02:39]} Rxe7 {[%emt 0:06:52]} 31. Qxe7 {[%emt 0:02:23]} Re8 {[%emt 0:02:44]} 32. g6+ {[%emt 0:00:06]} Kh8 {[%emt 0:02:38]} 33. Qg5 {[%emt 0:00:10]} Rf8 {[%emt 0:01:57]} 34. Qxh5+ {[%emt 0:00:15]} Bh6 {[%emt 0:00:48]} 35. Qxh6+ {[%emt 0:00:07]} Kg8 {[%emt 0:00:05]} 36. Qh7# {[%emt 0:00:05]} 1-0

[Event "DFMMLV 2019"]
[Site "Braunfels"]
[Date "2019.06.20"]
[Round "1.53"]
[White "Schwegler, Jelena"]
[Black "Franzenburg, Maria"]
[Result "1/2-1/2"]
[ECO "C17"]
[WhiteElo "1511"]
[BlackElo "1860"]
[Annotator "NA"]
[PlyCount "59"]
[EventDate "2019.06.20"]
[EventType "team-tourn"]
[EventCountry "GER"]
[SourceTitle "playchess.com"]
[Source "ChessBase"]
[SourceQuality "1"]
[WhiteTeam "Hessen 2"]
[BlackTeam "Schleswig Holstein"]
[TimeControl "40/5400+30:1800+30"]

1. e4 {[%emt 0:00:00]} e6 {[%emt 0:00:00]} 2. d4 {[%emt 0:00:00]} d5 {[%emt 0:00:00]} 3. Nc3 {[%emt 0:00:00]} Bb4 {[%emt 0:00:00]} 4. e5 {[%emt 0:00:00]} c5 {[%emt 0:00:00]} 5. a3 {[%emt 0:00:00]} cxd4 {[%emt 0:00:01]} 6. Qxd4 {[%emt 0:00:20]} Nc6 {[%emt 0:00:15]} 7. Bb5 {[%emt 0:00:37]} Bd7 {[%emt 0:00:11]} 8. Bxc6 {[%emt 0:00:42]} Bxc3+ {[%emt 0:00:08]} 9. Qxc3 {[%emt 0:00:06]} Bxc6 {[%emt 0:00:05]} 10. Qg3 {[%emt 0:00:35]} Kf8 {[%emt 0:02:00]} 11. Nf3 {[%emt 0:02:20]} h5 {[%emt 0:02:35]} 12. O-O {[%emt 0:03:41]} Nh6 {[%emt 0:04:44]} 13. Nd4 {[%emt 0:09:34]} Bd7 {[%emt 0:10:31]} 14. Bd2 {[%emt 0:04:13]} a5 {[%emt 0:04:16]} 15. Rae1 {[%emt 0:02:45]} b5 {[%emt 0:12:23]} 16. Bg5 {[%emt 0:09:33]} Qb6 {[%emt 0:05:59]} 17. Qf4 {[%emt 0:08:00]} Nf5 {[%emt 0:06:43]} 18. Nxf5 {[%emt 0:01:16]} exf5 {[%emt 0:00:03]} 19. Re3 {[%emt 0:03:26]} Rc8 {[%emt 0:02:41]} 20. c3 {[%emt 0:01:34]} Rc4 {[%emt 0:00:38]} 21. Qf3 {[%emt 0:02:38]} Rg4 {[%emt 0:07:25]} 22. h4 {[%emt 0:13:06]} Kg8 {[%emt 0:07:17]} 23. b3 {[%emt 0:09:18]} Qe6 {[%emt 0:08:06]} 24. Qe2 {[%emt 0:03:08]} Re4 {[%emt 0:06:22]} 25. f3 {[%emt 0:01:57]} Rxe3 {[%emt 0:01:13]} 26. Qxe3 {[%emt 0:00:27]} Kh7 {[%emt 0:01:15]} 27. Rd1 {[%emt 0:01:30]} Kg6 {[%emt 0:02:12]} 28. Qd4 {[%emt 0:03:17]} Bc6 {[%emt 0:00:58]} 29. Rd2 {[%emt 0:03:20]} Re8 {[%emt 0:00:43]} 30. Bf4 {[%emt 0:02:35]} 1/2-1/2

[Event "DFMMLV 2019"]
[Site "Braunfels"]
[Date "2019.06.20"]
[Round "1.54"]
[White "Mundt, Alexandra"]
[Black "Goetz, Fenja"]
[Result "1-0"]
[ECO "A04"]
[WhiteElo "1797"]
[BlackElo "1528"]
[Annotator "NA"]
[PlyCount "67"]
[EventDate "2019.06.20"]
[EventType "team-tourn"]
[EventCountry "GER"]
[SourceTitle "playchess.com"]
[Source "ChessBase"]
[SourceQuality "1"]
[WhiteTeam "Schleswig Holstein"]
[BlackTeam "Hessen 2"]
[TimeControl "40/5400+30:1800+30"]

1. Nf3 {[%emt 0:00:00]} Nc6 {[%emt 0:00:00]} 2. d4 {[%emt 0:00:00]} d5 {[%emt 0:00:00]} 3. g3 {[%emt 0:00:05]} Bf5 {[%emt 0:00:57]} 4. Bg2 {[%emt 0:00:19]} Nf6 {[%emt 0:00:48]} 5. a3 {[%emt 0:01:40]} g6 {[%emt 0:02:49]} 6. b3 {[%emt 0:01:32]} Bg7 {[%emt 0:03:49]} 7. Bb2 {[%emt 0:00:12]} O-O {[%emt 0:00:12]} 8. O-O {[%emt 0:00:16]} Re8 {[%emt 0:06:32]} 9. Nbd2 {[%emt 0:05:58]} Ne4 {[%emt 0:19:22]} 10. e3 {[%emt 0:01:52]} Bg4 {[%emt 0:05:11]} 11. h3 {[%emt 0:05:09]} Nxd2 {[%emt 0:01:09]} 12. Qxd2 {[%emt 0:00:12]} Bf5 {[%emt 0:00:45]} 13. Nh4 {[%emt 0:02:27]} Bd7 {[%emt 0:04:00]} 14. Kh2 {[%emt 0:05:55]} Bc8 {[%emt 0:07:26]} 15. Rab1 {[%emt 0:08:15]} e5 {[%emt 0:05:15]} 16. dxe5 {[%emt 0:12:04]} Nxe5 {[%emt 0:14:08]} 17. Qxd5 {[%emt 0:02:27]} c6 {[%emt 0:00:13]} 18. Qxd8 {[%emt 0:07:55]} Rxd8 {[%emt 0:00:02]} 19. f4 {[%emt 0:00:30]} Nd7 {[%emt 0:01:40]} 20. Bxg7 {[%emt 0:04:31]} Kxg7 {[%emt 0:00:02]} 21. Rbd1 {[%emt 0:02:52]} Re8 {[%emt 0:00:23]} 22. e4 {[%emt 0:01:19]} Nb6 {[%emt 0:00:59]} 23. g4 {[%emt 0:05:25]} Bd7 {[%emt 0:01:13]} 24. Rd2 {[%emt 0:00:26]} Re7 {[%emt 0:00:46]} 25. f5 {[%emt 0:03:43]} gxf5 {[%emt 0:00:10]} 26. gxf5 {[%emt 0:01:16]} Kg8 27. Bf3 {[%emt 0:03:34]} Kh8 {[%emt 0:04:46]} 28. Ng2 {[%emt 0:02:01]} Rae8 {[%emt 0:00:46]} 29. Nf4 {[%emt 0:02:01]} Bc8 {[%emt 0:01:32]} 30. Nh5 {[%emt 0:03:52]} Rg8 {[%emt 0:02:04]} 31. Nf6 {[%emt 0:01:35]} Rg7 {[%emt 0:00:03]} 32. Rd8+ {[%emt 0:00:15]} Re8 {[%emt 0:00:27]} 33. Rxe8+ {[%emt 0:00:09]} Rg8 {[%emt 0:00:06]} 34. Rxg8# {[%emt 0:00:03]} 1-0

[Event "DFMMLV 2019"]
[Site "Braunfels"]
[Date "2019.06.20"]
[Round "1.55"]
[White "von Beckh, Frieda"]
[Black "Freter, Anke"]
[Result "1-0"]
[ECO "B21"]
[WhiteElo "1465"]
[BlackElo "1856"]
[Annotator "NA RC"]
[PlyCount "53"]
[EventDate "2019.06.20"]
[EventType "team-tourn"]
[EventCountry "GER"]
[SourceTitle "playchess.com"]
[Source "ChessBase"]
[SourceQuality "1"]
[BlackTeam "Schleswig Holstein"]
[TimeControl "40/5400+30:1800+30"]

1. e4 {[%emt 0:00:00]} c5 {[%emt 0:00:00]} 2. d4 {[%emt 0:00:00]} cxd4 {[%emt 0:00:02]} 3. c3 {[%emt 0:00:00]} Nc6 {[%emt 0:01:08]} 4. cxd4 {[%emt 0:00:08]} d5 {[%emt 0:00:41]} 5. exd5 {[%emt 0:00:52]} Qxd5 {[%emt 0:01:08]} 6. Nf3 {[%emt 0:00:30]} e5 {[%emt 0:05:15]} 7. Nc3 {[%emt 0:04:11]} Bb4 {[%emt 0:00:29]} 8. Bd2 {[%emt 0:03:08]} Bxc3 {[%emt 0:01:56]} 9. Bxc3 {[%emt 0:00:20]} Bg4 {[%emt 0:09:33]} 10. dxe5 {[%emt 0:02:20]} Qe4+ {[%emt 0:08:27]} 11. Qe2 {[%emt 0:00:25]} Bxf3 {[%emt 0:00:36]} 12. gxf3 {[%emt 0:00:15]} Qxe2+ {[%emt 0:00:15]} 13. Bxe2 {[%emt 0:00:24]} Nge7 {[%emt 0:01:03]} 14. Bc4 {[%emt 0:02:16]} O-O {[%emt 0:02:24]} 15. Rg1 {[%emt 0:02:27]} Ng6 {[%emt 0:01:08]} 16. f4 {[%emt 0:02:14]} Rae8 {[%emt 0:12:27]} 17. O-O-O {[%emt 0:01:28]} Nxf4 {[%emt 0:01:59]} 18. e6 {[%emt 0:02:58]} Ng6 {[%emt 0:01:19]} 19. exf7+ {[%emt 0:00:54]} Rxf7 {[%emt 0:00:07]} 20. Bxf7+ {[%emt 0:04:24]} Kxf7 {[%emt 0:00:02]} 21. f4 {[%emt 0:04:23]} Re7 {[%emt 0:03:17]} 22. Rd5 {[%emt 0:06:25]} Kg8 {[%emt 0:01:03]} 23. f5 {[%emt 0:01:22]} Nf4 {[%emt 0:03:15]} 24. Rd2 {[%emt 0:00:58]} Rf7 {[%emt 0:02:26]} 25. f6 {[%emt 0:00:39]} g6 {[%emt 0:01:12]} 26. Re1 {[%emt 0:02:48]} Kf8 {[%emt 0:01:20]} 27. Bb4+ {[%emt 0:01:56] Nb8} 1-0

[Event "DFMMLV 2019"]
[Site "Braunfels"]
[Date "2019.06.20"]
[Round "1.56"]
[White "Braeutigam, Katerina"]
[Black "Biesdorf, Ina"]
[Result "0-1"]
[ECO "C62"]
[WhiteElo "1697"]
[BlackElo "1405"]
[Annotator "NA"]
[PlyCount "79"]
[EventDate "2019.06.20"]
[EventType "team-tourn"]
[EventCountry "GER"]
[SourceTitle "playchess.com"]
[Source "ChessBase"]
[SourceQuality "1"]
[WhiteTeam "Schleswig Holstein"]
[BlackTeam "Hessen 2"]
[TimeControl "40/5400+30:1800+30"]

1. e4 {[%emt 0:00:00]} e5 {[%emt 0:00:00]} 2. Nf3 {[%emt 0:00:00]} Nc6 {[%emt 0:00:18]} 3. Bb5 {[%emt 0:00:17]} d6 {[%emt 0:08:09]} 4. c3 {[%emt 0:02:36]} Bd7 {[%emt 0:01:51]} 5. h3 {[%emt 0:06:37]} Be7 {[%emt 0:05:36]} 6. O-O {[%emt 0:00:37]} a6 {[%emt 0:02:24]} 7. Ba4 {[%emt 0:00:15]} Nf6 {[%emt 0:05:29]} 8. Re1 {[%emt 0:01:58]} O-O {[%emt 0:03:30]} 9. d4 {[%emt 0:02:29]} h6 {[%emt 0:06:29]} 10. Nbd2 {[%emt 0:03:58]} exd4 {[%emt 0:08:01]} 11. cxd4 {[%emt 0:02:36]} Nb4 {[%emt 0:05:09]} 12. Bc2 {[%emt 0:03:40]} Nxc2 {[%emt 0:01:45]} 13. Qxc2 {[%emt 0:00:22]} Re8 {[%emt 0:04:53]} 14. Nf1 {[%emt 0:02:02]} Nh7 {[%emt 0:08:58]} 15. Ng3 {[%emt 0:07:52]} Ng5 {[%emt 0:02:00]} 16. Re3 {[%emt 0:12:28]} Bf6 {[%emt 0:05:33]} 17. Nxg5 {[%emt 0:11:18]} Bxg5 {[%emt 0:01:12]} 18. Rf3 {[%emt 0:00:56]} Bf6 {[%emt 0:04:11]} 19. Be3 {[%emt 0:05:28]} Rc8 {[%emt 0:08:13]} 20. Nh5 {[%emt 0:02:37]} Bh4 {[%emt 0:01:30]} 21. Qb3 {[%emt 0:06:52]} Be6 {[%emt 0:06:15]} 22. Qxb7 {[%emt 0:10:38]} Bc4 {[%emt 0:00:12]} 23. Bd2 {[%emt 0:10:01]} Be2 {[%emt 0:00:30]} 24. Qd5 {[%emt 0:05:05]} Bxf3 {[%emt 0:00:46]} 25. gxf3 {[%emt 0:00:18]} g6 {[%emt 0:02:42]} 26. Nf4 {[%emt 0:01:22]} Bg5 {[%emt 0:00:34]} 27. Rd1 {[%emt 0:00:28]} Qf6 {[%emt 0:01:20]} 28. Ng2 {[%emt 0:00:35]} Bxd2 {[%emt 0:00:27]} 29. Rxd2 {[%emt 0:00:14]} Qxf3 {[%emt 0:00:52]} 30. Qb7 {[%emt 0:00:44]} Qxe4 {[%emt 0:00:43]} 31. Qxa6 {[%emt 0:00:13]} Ra8 {[%emt 0:00:59]} 32. Qc4 {[%emt 0:00:06]} c5 {[%emt 0:01:31]} 33. a3 {[%emt 0:01:04]} Re5 {[%emt 0:02:05]} 34. h4 {[%emt 0:00:36]} Rd5 {[%emt 0:00:50]} 35. Ne3 {[%emt 0:00:36]} Rxd4 {[%emt 0:00:22]} 36. Rxd4 {[%emt 0:00:08]} Qxd4 {[%emt 0:00:19]} 37. Qb5 {[%emt 0:00:52]} Qa4 {[%emt 0:01:50]} 38. Qb7 {[%emt 0:00:20]} Qe8 {[%emt 0:00:46]} 39. Ng4 {[%emt 0:00:00]} Kg7 {[%emt 0:00:00]} 40. Qb3 {[%emt 0:00:00]} 0-1

[Event "DFMMLV 2019"]
[Site "Braunfels"]
[Date "2019.06.21"]
[Round "2.3"]
[White "Mira, Helene"]
[Black "Zhang, Fan"]
[Result "1-0"]
[ECO "A46"]
[WhiteElo "2029"]
[BlackElo "2069"]
[Annotator "NA RC"]
[PlyCount "141"]
[EventDate "2019.06.20"]
[EventType "team-tourn"]
[EventCountry "GER"]
[SourceTitle "playchess.com"]
[Source "ChessBase"]
[SourceQuality "1"]
[WhiteTeam "Wuerttemberg 1"]
[BlackTeam "Baden"]
[TimeControl "40/5400+30:1800+30"]

1. Nf3 {[%emt 0:11:05]} Nf6 {[%emt 0:00:00]} 2. d4 {[%emt 0:00:19]} e6 {[%emt 0:00:00]} 3. e3 {[%emt 0:00:05]} d5 {[%emt 0:03:06]} 4. b3 {[%emt 0:00:52]} Nbd7 {[%emt 0:06:45]} 5. Bd3 {[%emt 0:00:33]} Bd6 {[%emt 0:02:05]} 6. Bb2 {[%emt 0:00:14] D05: Colle System with ...e6} O-O {[%emt 0:01:17]} 7. Nbd2 {[%emt 0:00:57]} (7. O-O c5 8. Nbd2 b6 9. Ne5 Bb7 10. f4 cxd4 11. exd4 Ne4 12. Qe2 f5 13. Nxe4 fxe4 14. Bb5 Nxe5 15. fxe5 Bc7 16. Ba3 Rf5 17. Qg4 Qg5 18. Qxg5 Rxg5 {1-0 (28) Dzagnidze,N (2522)-Lei,T (2528) Riadh 2017}) 7... Re8 {[%emt 0:01:00]} 8. Ne5 {[%emt 0:00:13]} c5 {[%emt 0:01:46]} 9. O-O {[%emt 0:01:12]} b6 {[%emt 0:03:46]} 10. f4 {[%emt 0:00:39]} Bb7 {[%emt 0:03:05]} 11. Qf3 {[%emt 0:03:54]} Qc7 {[%emt 0:03:20]} 12. Qh3 {[%emt 0:00:21]} Ne4 $146 {[%emt 0:05:59]} ({Predecessor:} 12... cxd4 13. exd4 Bf8 14. Rae1 g6 15. Ndf3 Bg7 16. Ng5 Rf8 17. Ngxf7 Rxf7 18. Nxf7 Kxf7 19. Qxe6+ {1-0 (29) Nguyen,T-Nguyen Thi Hoang,O Dong Thap 2000}) 13. Nxe4 {[%emt 0:07:52]} dxe4 {[%emt 0:00:32]} 14. Bb5 {[%emt 0:00:11]} Bxe5 {[%emt 0:21:10]} 15. fxe5 {[%emt 0:12:05]} a6 {[%emt 0:06:17]} 16. Bxd7 {[%emt 0:05:24]} Qxd7 {[%emt 0:00:04]} 17. c4 {[%emt 0:02:55]} cxd4 {[%emt 0:15:56]} 18. Bxd4 {[%emt 0:03:20]} b5 {[%emt 0:01:30]} 19. c5 {[%emt 0:00:11]} b4 {[%emt 0:00:36]} 20. Qh5 {[%emt 0:00:28]} Bc6 {[%emt 0:02:35]} 21. Rf4 {[%emt 0:00:13]} Bb5 {[%emt 0:08:13]} 22. Rh4 {[%emt 0:04:16]} h6 {[%emt 0:00:07]} 23. Rxe4 {[%emt 0:00:21]} Bd3 {[%emt 0:00:26]} 24. Rf4 {[%emt 0:00:14]} Re7 {[%emt 0:02:40]} 25. Rc1 {[%emt 0:06:51]} Rc8 {[%emt 0:00:11]} 26. Qd1 {[%emt 0:00:24]} Bb5 {[%emt 0:00:56]} 27. Rc2 {[%emt 0:00:40]} a5 {[%emt 0:00:24]} 28. Qh5 {[%emt 0:02:20]} Qb7 {[%emt 0:01:58]} 29. Rcf2 {[%emt 0:01:32]} Bd3 {[%emt 0:00:42]} 30. Qf3 {[%emt 0:07:58]} Qxf3 {[%emt 0:02:07]} 31. gxf3 {[%emt 0:00:13]} h5 {[%emt 0:01:22]} 32. Rh4 {[%emt 0:02:10]} g6 {[%emt 0:00:03]} 33. Rh3 {[%emt 0:00:58]} Rd7 {[%emt 0:00:38]} 34. Rg3 {[%emt 0:01:37]} Kf8 {[%emt 0:00:17]} 35. h4 {[%emt 0:00:28]} Ke7 {[%emt 0:00:25]} 36. Kh2 {[%emt 0:00:09]} Ke8 {[%emt 0:00:41]} 37. Rg1 {[%emt 0:00:06]} Ke7 {[%emt 0:00:36]} 38. Rd2 {[%emt 0:01:02]} Bb5 {[%emt 0:00:29]} 39. Rgd1 {[%emt 0:00:11]} Rcd8 {[%emt 0:01:36]} 40. Kg3 {[%emt 0:01:05]} Bc6 {[%emt 0:00:52]} 41. Kf4 {[%emt 0:30:25]} Rc8 {[%emt 0:31:59]} 42. e4 {[%emt 0:00:54]} Rcd8 {[%emt 0:01:54]} 43. Ke3 {[%emt 0:00:40]} Bb5 {[%emt 0:00:32]} 44. c6 {[%emt 0:03:35]} Bxc6 {[%emt 0:00:00]} 45. Bc5+ {[%emt 0:00:00]} Ke8 {[%emt 0:00:00]} 46. Bd6 {[%emt 0:00:00]} a4 {[%emt 0:00:00]} 47. Rc1 {[%emt 0:00:00]} Bb5 {[%emt 0:00:00]} 48. Rc5 {[%emt 0:00:00]} Rb7 {[%emt 0:00:00]} 49. Rdc2 {[%emt 0:00:00]} axb3 {[%emt 0:00:00]} 50. axb3 {[%emt 0:00:00]} f6 {[%emt 0:00:00]} 51. Kf4 {[%emt 0:00:00]} fxe5+ {[%emt 0:03:51]} 52. Kxe5 {[%emt 0:00:00]} Bd7 {[%emt 0:00:57]} (52... Kf7 $16 {might work better.}) 53. R2c4 {[%emt 0:00:00]} Ra8 {[%emt 0:00:23]} 54. Kf6 {[%emt 0:00:00]} Ra3 {[%emt 0:00:47]} 55. Rg5 {[%emt 0:00:00]} Rxb3 {[%emt 0:00:28]} 56. f4 {[%emt 0:00:00]} Bb5 {[%emt 0:00:57]} 57. Rd4 {[%emt 0:02:09]} ({Stronger than} 57. Rxb4 Rxb4 58. Bxb4 Bd3 $11) 57... Rf7+ {[%emt 0:00:33]} 58. Kxg6 {[%emt 0:01:12]} Be2 $1 $11 {[%emt 0:00:36] [#] and Black has nothing to worry.} (58... Rd3 $142 59. Rxb4 Rxd6 60. Rgxb5 e5+ 61. Kxh5 exf4) 59. Ra5 $2 {[%emt 0:01:16]} (59. f5 $1 $18 {[%cal Rf5e6]} exf5 60. exf5 Rd7 61. Re4+ {[%mdl 64] Double Attack} Kd8) 59... Rg3+ $1 {[%emt 0:00:07]} 60. Rg5 {[%emt 0:00:39]} Rxg5+ $4 {[%emt 0:00:06]} 61. hxg5 {[%emt 0:00:09]} b3 {[%emt 0:00:23]} 62. Rb4 {[%emt 0:00:24]} Rd7 {[%emt 0:00:25]} 63. e5 {[%emt 0:02:27]} Bd1 {[%emt 0:00:44]} (63... h4 $142 64. Rb8+ Rd8 65. Rxb3 Bd1) 64. Kf6 $2 {[%emt 0:00:23]} (64. Kh6 $18 {is more deadly.} Rd8 65. g6) 64... Rf7+ $16 {[%emt 0:01:15]} 65. Kxe6 {[%emt 0:00:42]} Bg4+ {[%emt 0:00:03]} 66. Kd5 {[%emt 0:00:12]} Bf3+ {[%emt 0:00:22]} 67. Kc5 {[%emt 0:00:24]} b2 {[%emt 0:00:21]} 68. Rxb2 {[%emt 0:00:56]} Ra7 {[%emt 0:01:13]} 69. g6 {[%emt 0:02:39]} Ra5+ {[%emt 0:00:30]} 70. Kd4 {[%emt 0:00:10]} Ra7 {[%emt 0:00:31]} 71. f5 {[%emt 0:00:11]} 1-0

[Event "DFMMLV 2019"]
[Site "Braunfels"]
[Date "2019.06.21"]
[Round "2.4"]
[White "Schneider, Birgit"]
[Black "Gheng, Simona"]
[Result "0-1"]
[ECO "B22"]
[WhiteElo "1874"]
[BlackElo "1991"]
[Annotator "NA RC"]
[PlyCount "98"]
[EventDate "2019.06.20"]
[EventType "team-tourn"]
[EventCountry "GER"]
[SourceTitle "playchess.com"]
[Source "ChessBase"]
[SourceQuality "1"]
[WhiteTeam "Baden"]
[BlackTeam "Wuerttemberg 1"]
[TimeControl "40/5400+30:1800+30"]

1. e4 {[%emt 0:00:00]} c5 {[%emt 0:00:00]} 2. c3 {[%emt 0:00:00]} d6 {[%emt 0:00:30]} 3. d4 {[%emt 0:00:08]} cxd4 {[%emt 0:00:20]} 4. cxd4 {[%emt 0:00:10]} g6 {[%emt 0:00:25]} 5. Nc3 {[%emt 0:00:52]} Bg7 {[%emt 0:00:32]} 6. h3 {[%emt 0:02:23]} Nc6 {[%emt 0:03:03]} 7. Nf3 {[%emt 0:01:25]} a6 {[%emt 0:01:47]} 8. Be2 {[%emt 0:04:33]} Nf6 {[%emt 0:05:25]} 9. O-O {[%emt 0:03:55]} Nd7 {[%emt 0:02:33]} 10. Be3 {[%emt 0:03:30]} b5 {[%emt 0:04:46]} 11. a3 {[%emt 0:06:37]} Bb7 {[%emt 0:01:06]} 12. Rc1 {[%emt 0:08:09]} Rc8 {[%emt 0:00:59]} 13. Qb3 {[%emt 0:09:42]} Na5 {[%emt 0:05:43]} 14. Qa2 {[%emt 0:03:43]} Nc4 {[%emt 0:00:44]} 15. Bxc4 {[%emt 0:03:28]} Rxc4 {[%emt 0:01:36]} 16. a4 {[%emt 0:10:49]} O-O {[%emt 0:05:49]} 17. axb5 {[%emt 0:03:09]} axb5 {[%emt 0:00:27]} 18. Nd2 {[%emt 0:06:04]} Rc8 {[%emt 0:00:25]} 19. Nd5 {[%emt 0:06:13]} Bxd5 {[%emt 0:02:05]} 20. Qxd5 {[%emt 0:02:47]} Rb8 {[%emt 0:10:48]} 21. Rc2 {[%emt 0:03:01]} Qa5 {[%emt 0:03:50]} 22. Rfc1 {[%emt 0:02:17]} Nb6 {[%emt 0:01:06]} 23. Qb3 {[%emt 0:01:45]} h5 {[%emt 0:06:09]} 24. Rc7 {[%emt 0:02:50]} Nc4 {[%emt 0:03:24]} 25. Nxc4 {[%emt 0:07:16]} Qxc7 {[%emt 0:00:42]} 26. Ne5 {[%emt 0:00:40]} Qb7 {[%emt 0:01:17]} 27. Nxg6 {[%emt 0:01:48]} Rfc8 {[%emt 0:00:52]} 28. Rxc8+ {[%emt 0:00:50]} Rxc8 {[%emt 0:00:08]} 29. Nf4 {[%emt 0:03:47]} Qxe4 {[%emt 0:01:56]} 30. Nxh5 {[%emt 0:00:41]} Bxd4 {[%emt 0:01:49]} 31. Bxd4 {[%emt 0:00:31]} Rc1+ {[%emt 0:01:13]} 32. Kh2 {[%emt 0:00:26]} Qxd4 {[%emt 0:00:16]} 33. Qg3+ {[%emt 0:01:47]} Kf8 {[%emt 0:00:26]} 34. Nf4 {[%emt 0:00:51]} Rc4 {[%emt 0:05:49]} 35. Nd3 {[%emt 0:00:44]} Qf6 {[%emt 0:02:58]} 36. Qe3 {[%emt 0:00:19]} Rd4 {[%emt 0:01:35]} 37. g3 {[%emt 0:00:29]} e5 {[%emt 0:00:27]} 38. Kg2 {[%emt 0:00:28]} Qg6 {[%emt 0:00:44]} 39. Ne1 {[%emt 0:00:20]} Qe4+ {[%emt 0:00:34]} 40. Qxe4 {[%emt 0:00:48]} Rxe4 {[%emt 0:00:05]} 41. Nf3 {[%emt 0:04:30]} Rb4 {[%emt 0:00:30]} 42. Ng5 {[%emt 0:02:19]} d5 {[%emt 0:01:08]} 43. h4 {[%emt 0:01:15]} Rxb2 {[%emt 0:01:00]} 44. Kf3 {[%emt 0:00:56]} Kg7 {[%emt 0:00:24]} 45. Ke3 {[%emt 0:00:43]} d4+ {[%emt 0:00:19]} 46. Kf3 {[%emt 0:01:19]} f5 {[%emt 0:00:27]} 47. Nh3 {[%emt 0:02:14]} Rb3+ {[%emt 0:00:32]} 48. Ke2 {[%emt 0:00:21]} Rc3 {[%emt 0:00:42]} 49. Kd2 {[%emt 0:04:34]} b4 {[%emt 0:00:19]} 0-1